bitfinex/quotes_ETHUSD_20241106
["timestamp","ask_amount","ask_price","bid_price","bid_amount"]
[1730884669821,3.81683,2620.0,2619.5,3.81751]
[1730884670376,7.63373,2620.0,2619.5,3.81751]
[1730884670601,3.81701,2619.9,2619.3,3.81771]
[1730884670832,0.8258,2620.0,2618.9,0.7777]
[1730884670986,3.81794,2619.3,2618.8,3.81843]
[1730884671614,4.60697,2619.4,2618.9,3.81832]
[1730884671953,0.7893,2619.4,2618.9,3.81832]
[1730884672390,3.81797,2619.2,2618.7,3.81858]
[1730884672580,3.81821,2619.1,2618.6,4.65083]
[1730884672780,0.381657,2620.1,2618.6,0.832]
[1730884672977,0.7802,2619.9,2619.3,3.81776]
[1730884673239,3.81716,2619.8,2619.3,3.81776]
[1730884673717,3.81724,2619.7,2619.2,4.60275]
[1730884673925,3.81738,2619.6,2619.2,0.7848]
[1730884674129,3.81738,2619.6,2619.0,3.81825]
[1730884674130,4.199288,2619.5,2619.0,3.81825]
[1730884674282,4.199288,2619.5,2619.0,7.6365]
[1730884674622,0.381738,2619.5,2619.0,3.81815]
[1730884674820,0.381738,2619.5,2619.0,7.63632]
[1730884675185,3.81768,2619.4,2619.0,3.81815]
[1730884675517,3.81768,2619.4,2618.9,0.7848]
[1730884675518,0.4199418,2619.3,2618.9,0.7848]
[1730884675719,4.2377518,2619.3,2618.8,3.81844]
[1730884675932,3.81796,2619.2,2618.6,4.57202]
[1730884676097,3.81796,2619.2,2618.4,3.81902]
[1730884676098,3.81834,2619.0,2618.4,3.81902]
[1730884676282,3.81834,2619.0,2618.6,0.04998416]
[1730884676487,0.381834,2619.0,2618.4,0.07637435]
[1730884676684,0.381834,2619.0,2618.7,0.04189078]
[1730884676933,3.81839,2618.9,2618.5,3.81895]
[1730884677179,0.381834,2619.0,2618.8,0.04187735]
[1730884677323,4.200174,2619.0,2618.5,3.81893]
[1730884677524,0.4200174,2618.9,2618.4,3.81898]
[1730884677824,0.4200174,2618.9,2618.6,3.81882]
[1730884678025,0.381834,2619.0,2618.7,3.81862]
[1730884678376,4.2377618,2619.3,2618.8,3.81846]
[1730884678735,4.2377618,2619.3,2618.9,0.04566973]
[1730884679150,8.0556918,2619.3,2618.9,0.04566973]
[1730884679331,3.81798,2619.2,2618.9,0.04566973]
[1730884679668,3.81798,2619.2,2618.7,3.81868]
[1730884679863,0.88157418,2619.2,2619.0,0.04559276]
[1730884680048,0.88157418,2619.2,2618.8,3.81845]
[1730884680360,0.88157418,2619.2,2619.1,0.04557292]
[1730884680563,0.88157418,2619.2,2618.8,3.81846]
[1730884680789,0.88157418,2619.2,2619.1,0.04557292]
[1730884681388,0.88157418,2619.2,2618.7,7.6373]
[1730884681389,4.69953418,2619.2,2618.7,7.6373]
[1730884681568,0.88157418,2619.2,2619.1,0.04557292]
[1730884681884,0.88157418,2619.2,2619.1,0.03371274]
[1730884682184,4.57767,2619.4,2618.9,3.81833]
[1730884682358,3.81763,2619.5,2619.1,0.03607927]
[1730884682565,3.81763,2619.5,2619.1,3.81803]
[1730884682765,3.81763,2619.5,2619.2,0.03376734]
[1730884683462,3.81763,2619.5,2619.0,3.81814]
[1730884683663,3.81769,2619.4,2619.3,0.03377347]
[1730884683875,3.81789,2619.3,2618.8,4.62835]
[1730884684078,0.459403,2619.5,2618.7,0.8186]
[1730884684392,3.81806,2619.2,2618.7,4.63725]
[1730884684886,3.81811,2619.1,2618.7,4.63725]
[1730884685043,3.81806,2619.2,2618.7,8.45584]
[1730884685249,3.81806,2619.2,2618.7,4.63719]
[1730884685495,3.81776,2619.4,2618.9,3.81832]
[1730884685676,4.581283,2619.4,2618.9,3.81832]
[1730884686062,3.81752,2619.5,2619.0,3.81824]
[1730884686387,3.81752,2619.5,2619.1,3.81808]
[1730884686590,3.81738,2619.6,2619.1,7.6361]
[1730884686747,3.81737,2619.6,2618.9,3.89464442]
[1730884686956,3.81737,2619.6,2619.2,3.81793]
[1730884687181,0.841111,2619.5,2618.8,3.89487849]
[1730884687397,4.98930971,2620.1,2619.4,3.81758]
[1730884687673,3.817,2619.9,2619.4,3.81758]
[1730884688389,3.81702,2619.9,2619.4,3.81758]
[1730884688685,4.276092,2619.9,2619.4,3.81758]
[1730884689557,0.8297,2620.5,2619.4,0.7675]
[1730884689755,0.07635268,2620.8,2619.7,0.55]
[1730884689756,0.8297,2620.8,2619.7,0.55]
[1730884689990,0.8297,2620.8,2620.2,3.8165]
[1730884690194,0.50437817,2620.8,2620.5,3.81598]
[1730884690495,3.81529,2621.1,2620.6,0.04170071]
[1730884690706,0.8297,2621.2,2620.7,0.8063]
[1730884690851,3.81499,2621.3,2620.7,0.85178225]
[1730884691055,3.81535,2621.0,2620.7,0.8063]
[1730884691256,3.81523,2621.1,2620.7,0.8063]
[1730884691990,3.81536,2621.0,2620.7,0.8063]
[1730884692208,3.81514,2621.2,2620.7,0.8063]
[1730884692357,7.63027,2621.2,2620.7,0.8063]
[1730884692904,3.81485,2621.4,2620.7,4.62197]
[1730884693199,3.81424,2621.8,2620.9,4.36538]
[1730884693200,0.7775,2621.8,2620.9,4.36538]
[1730884693379,3.81475,2621.4,2620.9,4.36538]
[1730884693701,7.62903,2621.6,2621.0,3.81525]
[1730884693858,0.762903,2621.5,2621.0,3.81525]
[1730884694059,0.762903,2621.5,2620.9,4.36538]
[1730884694060,4.577523,2621.5,2620.9,4.36538]
[1730884694259,0.762903,2621.5,2621.0,3.81523]
[1730884694571,0.762903,2621.5,2620.9,4.36538]
[1730884694572,3.81462,2621.5,2620.9,4.36538]
[1730884694759,3.81487,2621.4,2620.8,3.81562]
[1730884694955,3.81491,2621.3,2620.8,3.81562]
[1730884695496,0.7775,2621.8,2620.7,0.8063]
[1730884695825,3.81522,2621.1,2620.4,0.7577]
[1730884695976,3.8156,2620.9,2620.4,0.7577]
[1730884696310,3.81564,2620.8,2620.4,0.7577]
[1730884696601,3.81557,2620.9,2620.4,4.57388]
[1730884696794,4.578655,2620.9,2620.4,4.57388]
[1730884696997,3.81571,2620.8,2620.4,0.7577]
[1730884697208,3.81598,2620.6,2620.1,4.57429]
[1730884697389,3.81598,2620.6,2620.1,4.57426]
[1730884697587,3.81571,2620.8,2620.2,0.07632179]
[1730884697795,0.763114,2620.8,2620.4,3.8161]
[1730884698173,3.81548,2620.9,2620.4,3.8161]
[1730884698374,7.63138,2620.8,2620.3,3.81627]
[1730884698779,3.81577,2620.7,2620.2,3.81649]
[1730884699177,3.81577,2620.7,2620.2,3.8165]
[1730884700275,3.81599,2620.6,2620.1,4.57425]
[1730884700599,4.579166,2620.6,2620.1,4.57425]
[1730884701006,3.81615,2620.5,2620.1,0.7577]
[1730884701299,0.7855,2619.8,2619.0,0.7834]
[1730884701499,3.81747,2619.6,2619.0,0.7834]
[1730884701793,3.81737,2619.6,2619.1,3.81801]
[1730884702170,0.7855,2619.8,2619.0,0.7834]
[1730884702496,3.81774,2619.4,2619.0,0.7834]
[1730884703706,4.44088044,2619.4,2619.0,0.7834]
[1730884703859,0.62314044,2619.4,2618.9,0.07635994]
[1730884704066,3.81818,2619.1,2618.7,0.7533]
[1730884704901,7.63637,2619.1,2618.7,0.7533]
[1730884705204,3.8176,2619.5,2618.7,4.57185]
[1730884705404,3.81769,2619.4,2618.9,3.81832]
[1730884705703,4.60263,2619.8,2618.9,0.0763573]
[1730884705704,3.81732,2619.7,2618.9,0.0763573]
[1730884705905,3.81732,2619.7,2619.0,3.81817]
[1730884705906,3.81759,2619.5,2619.0,3.81817]
[1730884706061,3.81738,2619.6,2619.1,3.89434485]
[1730884706497,4.277522,2619.7,2619.2,3.81784]
[1730884706702,3.81724,2619.7,2619.2,4.63374]
[1730884707209,3.81724,2619.7,2619.2,8.45163]
[1730884707704,3.81694,2619.9,2619.3,3.81777]
[1730884708000,0.7947,2620.1,2619.2,0.8159]
[1730884708204,3.81731,2619.7,2619.2,4.63385]
[1730884708407,7.63465,2619.7,2619.2,4.63385]
[1730884708697,7.63462,2619.7,2619.2,4.63385]
[1730884708905,3.81731,2619.7,2619.2,4.63385]
[1730884709272,3.81731,2619.7,2619.2,0.8159]
[1730884709473,3.81745,2619.6,2619.2,0.8159]
[1730884709990,3.81742,2619.6,2619.2,0.8159]
[1730884710477,3.81742,2619.6,2619.2,4.63384]
[1730884710875,3.81767,2619.4,2619.2,0.8159]
[1730884711462,3.81752,2619.5,2619.2,0.8159]
[1730884711666,3.81717,2619.8,2619.2,0.8159]
[1730884711966,3.81723,2619.7,2619.2,4.63379]
[1730884712303,3.81709,2619.8,2619.2,4.63379]
[1730884712479,3.81724,2619.7,2619.2,8.45168]
[1730884712680,4.198799,2619.8,2619.3,3.81778]
[1730884713199,8.015979,2619.8,2619.3,3.81778]
[1730884713362,4.198799,2619.8,2619.3,3.81778]
[1730884713561,4.198799,2619.8,2619.2,4.63379]
[1730884713763,3.81725,2619.7,2619.2,4.63379]
[1730884714303,3.81739,2619.6,2619.2,0.8159]
[1730884715772,3.81752,2619.5,2619.2,0.8159]
[1730884715979,4.198899,2619.8,2619.2,0.8159]
[1730884716179,3.81738,2619.6,2619.2,0.8159]
[1730884717023,7.63483,2619.6,2619.2,0.8159]
[1730884717313,3.81738,2619.6,2619.2,0.8159]
[1730884717879,7.63486,2619.6,2619.2,0.8159]
[1730884718115,3.81768,2619.4,2618.6,1.1998]
[1730884718277,4.279838,2619.3,2618.7,3.81854]
[1730884718478,0.461918,2619.3,2618.8,3.81847]
[1730884718715,4.279748,2619.3,2618.9,3.81833]
[1730884719314,0.461918,2619.3,2618.9,3.81833]
[1730884719515,0.461918,2619.3,2618.9,0.8105]
[1730884719818,3.81804,2619.2,2618.8,3.81844]
[1730884720307,4.279848,2619.3,2618.8,3.81844]
[1730884720683,4.279818,2619.3,2618.8,3.81844]
[1730884721316,0.7738,2619.6,2618.7,0.55]
[1730884721523,3.8176,2619.5,2619.0,3.81811]
[1730884721822,0.4198899,2619.7,2618.8,0.88595952]
[1730884722023,7.63486,2619.6,2619.1,3.81804]
[1730884722380,7.63485,2619.6,2619.2,3.81795]
[1730884722691,3.81738,2619.6,2619.1,3.8181]
[1730884723392,3.81753,2619.5,2619.0,3.81823]
[1730884723596,0.763491,2619.5,2619.0,3.81818]
[1730884723984,0.763491,2619.5,2619.1,3.81809]
[1730884724185,3.81748,2619.6,2619.0,3.81818]
[1730884724418,3.81737,2619.6,2619.1,0.07635656]
[1730884724725,3.8171,2619.8,2619.3,3.81773]
[1730884725080,3.81665,2620.1,2619.5,3.81742]
[1730884725579,3.81679,2620.0,2619.5,3.81742]
[1730884726419,3.81665,2620.1,2619.5,3.81739]
[1730884726636,4.279545,2620.1,2619.5,7.63482]
[1730884726787,4.279545,2620.1,2619.5,7.63483]
[1730884727286,8.096265,2620.1,2619.5,3.81739]
[1730884727487,3.8168,2620.0,2619.5,3.80667199]
[1730884727682,4.279545,2620.1,2619.6,3.81737]
[1730884727883,3.81712,2619.8,2619.3,3.81773]
[1730884728707,3.81723,2619.7,2619.2,3.81791]
[1730884729120,3.81738,2619.6,2619.1,3.81802]
[1730884729427,3.81738,2619.6,2619.0,3.81823]
[1730884729727,3.8176,2619.5,2619.0,3.81823]
[1730884730031,0.464202,2619.7,2619.1,4.19949]
[1730884730200,3.81754,2619.5,2619.0,3.81821]
[1730884730405,0.8249,2619.9,2619.0,3.81821]
[1730884730619,3.81759,2619.5,2619.0,3.81821]
[1730884731134,3.81759,2619.5,2619.0,3.81814]
[1730884731689,3.81759,2619.5,2618.9,4.61656]
[1730884731889,0.381759,2619.4,2618.9,4.61656]
[1730884732089,3.8182,2619.1,2618.6,4.9718]
[1730884732341,8.42823,2619.3,2618.7,3.81868]
[1730884732493,4.61031,2619.3,2618.8,3.81846]
[1730884732689,0.7924,2619.3,2618.9,3.81832]
[1730884733015,0.4991769,2619.3,2619.0,3.81817]
[1730884733194,4.60979,2619.6,2619.0,3.81817]
[1730884733599,4.60979,2619.6,2618.9,3.81832]
[1730884733836,3.81752,2619.5,2618.9,3.81832]
[1730884734041,7.63512,2619.5,2618.9,3.81832]
[1730884734331,3.81794,2619.3,2618.7,3.81859]
[1730884734523,0.763569,2619.2,2618.7,7.63721]
[1730884734697,0.763569,2619.2,2618.7,3.81859]
[1730884735199,0.763569,2619.2,2618.7,7.63719]
[1730884735399,0.763569,2619.2,2618.7,3.81859]
[1730884735599,0.763569,2619.2,2618.8,3.81846]
[1730884735829,7.6355,2619.4,2618.8,3.81846]
[1730884736029,3.81781,2619.3,2618.8,3.81846]
[1730884736230,3.81806,2619.2,2618.6,0.7716]
[1730884736433,0.8201,2619.1,2618.4,3.81898]
[1730884736600,3.81832,2619.0,2618.5,3.81897]
[1730884736796,0.463842,2618.9,2618.5,3.81897]
[1730884737194,0.463842,2618.9,2618.4,3.81898]
[1730884737342,4.282292,2618.9,2618.3,4.60035]
[1730884737511,0.463842,2618.9,2618.4,3.8191]
[1730884737709,3.81803,2619.2,2618.6,3.81877]
[1730884738129,4.58149,2619.1,2618.4,0.8118]
[1730884738300,3.81825,2619.0,2618.4,0.8118]
[1730884738503,3.81847,2618.9,2618.4,0.8118]
[1730884738704,0.381847,2618.8,2618.3,3.8192]
[1730884739160,0.381847,2618.8,2618.2,4.64249]
[1730884739300,4.200397,2618.8,2618.2,0.8231]
[1730884739506,4.200397,2618.8,2618.3,3.81925]
[1730884740518,0.381847,2618.8,2618.3,3.8192]
[1730884741452,0.4200327,2618.7,2618.3,3.81917]
[1730884742466,0.7651,2618.6,2617.9,3.81975]
[1730884742672,0.7651,2618.6,2617.8,1.1467]
[1730884742673,4.58477,2618.1,2617.5,4.58563]
[1730884742873,0.7651,2618.1,2617.5,0.7653]
[1730884743030,0.7651,2618.1,2617.2,0.7826]
[1730884743230,3.82008,2617.8,2617.2,4.60346]
[1730884743545,3.81977,2618.0,2617.3,3.82063]
[1730884743730,3.81977,2618.0,2617.2,0.7826]
[1730884743731,0.7651,2618.1,2617.4,0.07641129]
[1730884743926,3.81951,2618.2,2617.6,3.82021]
[1730884744130,4.201521,2618.1,2617.5,3.82043]
[1730884744362,8.021171,2618.1,2617.5,3.82043]
[1730884744567,4.64528,2618.0,2617.3,3.82061]
[1730884744862,4.201521,2618.1,2617.2,3.82081]
[1730884744863,0.8255,2617.7,2617.2,3.82081]
[1730884745068,0.8255,2617.7,2617.2,3.82079]
[1730884745267,0.46455,2617.6,2617.4,3.8205]
[1730884745561,0.8309,2618.0,2617.4,3.8205]
[1730884745731,0.8309,2618.0,2617.5,3.82034]
[1730884745931,0.8309,2618.0,2617.5,3.82043]
[1730884746365,0.8309,2618.0,2617.3,0.7733]
[1730884746563,0.8309,2618.0,2617.6,3.82027]
[1730884747073,0.5032421,2617.9,2617.5,3.8204]
[1730884747241,0.5032421,2617.9,2617.4,3.82058]
[1730884747441,4.6506,2618.0,2617.5,3.82043]
[1730884747644,0.8309,2618.0,2617.5,3.82043]
[1730884749278,3.81986,2617.9,2617.4,3.82058]
[1730884750781,0.8309,2618.0,2617.5,3.82042]
[1730884750957,0.8309,2618.0,2617.5,7.64078]
[1730884751277,0.5032421,2617.9,2617.5,3.82036]
[1730884753377,0.8166,2617.8,2616.5,0.1267814]
[1730884753540,0.8166,2617.7,2617.0,3.82105]
[1730884753740,0.8166,2617.7,2616.9,0.751]
[1730884753985,0.8166,2617.7,2616.8,3.82137]
[1730884754286,3.82125,2617.0,2616.5,0.1267814]
[1730884754457,3.82125,2617.0,2616.5,3.9486614]
[1730884754857,0.8166,2617.3,2616.6,3.82173]
[1730884755053,4.63733,2617.3,2616.7,3.82148]
[1730884755382,0.845796,2617.2,2616.5,0.1267814]
[1730884755556,1.257864,2617.6,2616.9,4.59598]
[1730884755754,0.7942,2617.6,2617.0,0.07641602]
[1730884756064,0.7942,2617.6,2617.0,3.82105]
[1730884756376,3.82001,2617.8,2617.2,3.82075]
[1730884756553,4.65251,2617.9,2617.3,3.82063]
[1730884756755,4.60180427,2617.9,2617.3,3.82063]
[1730884756955,3.81943,2618.2,2617.6,3.8202]
[1730884757170,3.81957,2618.1,2617.5,4.65161]
[1730884757479,3.81971,2618.0,2617.3,3.82064]
[1730884757684,3.81971,2618.0,2617.4,3.8205]
[1730884757840,3.82011,2617.8,2617.2,4.65207]
[1730884758046,0.382011,2617.7,2617.2,3.82087]
[1730884758251,3.81979,2618.0,2617.5,3.82035]
[1730884758952,3.81961,2618.1,2617.5,3.82035]
[1730884759359,3.81971,2618.0,2617.5,3.82035]
[1730884759684,4.201841,2617.9,2617.3,7.64121]
[1730884759891,5.006041,2617.9,2617.3,7.64121]
[1730884760093,3.82034,2617.6,2617.1,3.82091]
[1730884760390,3.82015,2617.7,2617.1,3.82091]
[1730884760601,4.584314,2617.6,2617.1,3.82091]
[1730884760894,0.764024,2617.6,2617.3,3.82063]
[1730884761099,1.186171,2617.9,2617.3,3.82063]
[1730884761390,8.825971,2617.9,2617.3,7.64128]
[1730884761598,5.006031,2617.9,2617.3,7.64128]
[1730884761759,5.006031,2617.9,2617.4,3.82057]
[1730884762367,1.186171,2617.9,2617.3,3.82063]
[1730884762663,0.5005881,2617.8,2617.4,3.82048]
[1730884762869,0.5005881,2617.8,2617.5,3.82039]
[1730884763175,5.006101,2617.9,2617.4,3.82058]
[1730884763373,3.82004,2617.8,2617.3,3.82063]
[1730884763688,5.006101,2617.9,2617.4,3.82051]
[1730884763890,0.5006101,2617.8,2617.4,3.82051]
[1730884764782,4.3207001,2617.8,2617.1,3.82092]
[1730884765095,3.82026,2617.7,2617.3,3.82072]
[1730884765277,3.82031,2617.6,2616.9,1.1691]
[1730884765478,3.82031,2617.6,2617.1,3.82091]
[1730884765787,3.82044,2617.5,2616.9,4.60899]
[1730884765988,3.82044,2617.5,2617.0,3.82115]
[1730884766305,0.8245,2617.4,2616.9,4.60887]
[1730884766601,4.64509,2617.4,2616.9,3.82117]
[1730884766751,3.82073,2617.3,2616.6,0.8223]
[1730884766957,4.285339,2617.3,2616.7,3.82157]
[1730884767366,3.82095,2617.2,2616.7,3.82157]
[1730884768006,0.464509,2617.3,2617.0,3.82115]
[1730884768572,0.464509,2617.3,2617.0,7.64222]
[1730884768784,0.8245,2617.4,2617.0,3.82107]
[1730884769020,0.8245,2617.4,2616.8,3.82133]
[1730884769509,4.64508,2617.4,2617.0,3.82115]
[1730884770522,4.5827,2617.2,2616.6,3.82166]
[1730884770732,0.45827,2617.1,2616.7,3.82152]
[1730884771010,4.2793,2617.1,2616.6,3.82173]
[1730884771210,0.45827,2617.1,2616.7,3.8216]
[1730884771395,0.45827,2617.1,2616.8,3.82145]
[1730884771712,0.45827,2617.1,2616.6,4.58505]
[1730884771919,4.27929,2617.1,2616.7,3.82158]
[1730884772083,0.504109,2617.0,2616.5,3.9486614]
[1730884772311,4.325289,2617.0,2616.5,3.9486714]
[1730884772611,0.504109,2617.0,2616.5,3.9486714]
[1730884772817,3.82118,2617.0,2616.5,7.7705014]
[1730884773020,3.82142,2616.9,2616.5,0.1267814]
[1730884773242,3.82147,2616.8,2616.5,0.1267814]
[1730884773514,0.7552,2616.7,2616.5,0.1267814]
[1730884773678,0.839825,2616.6,2616.5,0.1267814]
[1730884773870,0.8243,2616.9,2616.5,3.9486014]
[1730884774075,0.8243,2616.9,2616.6,3.82171]
[1730884774310,4.64528,2617.2,2616.7,3.82159]
[1730884775078,3.82104,2617.1,2616.7,3.82159]
[1730884775582,0.8208,2617.0,2616.6,3.82175]
[1730884775810,1.285334,2617.0,2616.6,3.82175]
[1730884776011,5.106524,2617.0,2616.6,3.82175]
[1730884776307,1.285334,2617.0,2616.6,3.82175]
[1730884776511,0.8208,2617.0,2616.6,3.82175]
[1730884776673,4.64204,2617.0,2616.6,3.82175]
[1730884777079,4.64204,2617.0,2616.5,3.9486614]
[1730884777315,3.82132,2616.9,2616.5,0.1267814]
[1730884777915,3.82111,2617.1,2616.6,0.7805]
[1730884778090,4.203291,2617.0,2616.6,4.60218]
[1730884778286,0.382111,2617.0,2616.6,4.60218]
[1730884778513,0.382111,2617.0,2616.7,3.82156]
[1730884778732,3.82089,2617.2,2616.8,3.82143]
[1730884779034,3.82104,2617.1,2616.7,3.82156]
[1730884779345,0.8106,2617.0,2616.7,3.82151]
[1730884779842,0.8106,2617.0,2616.7,7.64303]
[1730884780045,0.8106,2617.0,2616.7,3.82151]
[1730884780640,0.463149,2617.0,2616.6,3.82175]
[1730884780943,4.63599,2617.2,2616.7,3.82149]
[1730884781235,0.8151,2617.2,2617.0,3.82116]
[1730884781436,0.7858,2617.5,2617.1,3.82102]
[1730884781638,0.7858,2617.5,2616.9,0.07642043]
[1730884781815,0.7858,2617.8,2617.6,3.82017]
[1730884782019,0.381971,2617.9,2617.6,3.82017]
[1730884782205,0.7858,2618.1,2617.7,3.82007]
[1730884782824,0.7858,2618.1,2617.6,3.82017]
[1730884783023,4.60537,2618.1,2617.6,3.82017]
[1730884783237,3.81971,2618.0,2617.5,3.82041]
[1730884783449,7.63952,2618.0,2617.5,3.82041]
[1730884783618,7.63952,2618.0,2617.4,0.777]
[1730884783619,3.81971,2618.0,2617.4,0.777]
[1730884783798,3.81987,2617.9,2617.5,3.82042]
[1730884784002,3.81971,2618.0,2617.3,3.82064]
[1730884784198,3.81992,2617.9,2617.2,4.20227]
[1730884784427,0.7577,2617.8,2617.2,3.82087]
[1730884784629,4.277982,2617.7,2617.2,3.82087]
[1730884784834,4.277982,2617.7,2616.8,3.82139]
[1730884784835,3.82069,2617.4,2616.8,3.82137]
[1730884785109,3.82069,2617.4,2616.7,4.20287]
[1730884785304,3.82069,2617.4,2616.8,3.82138]
[1730884785509,0.764112,2617.3,2616.8,3.82138]
[1730884785735,0.764112,2617.3,2616.9,3.82129]
[1730884786334,0.764112,2617.3,2617.0,3.82116]
[1730884786658,0.7577,2617.6,2617.1,3.82099]
[1730884787053,0.7577,2617.6,2617.2,3.82086]
[1730884787261,0.457762,2617.7,2617.3,3.82072]
[1730884787761,4.277912,2617.7,2617.2,7.64154]
[1730884787932,4.277912,2617.7,2617.3,3.82071]
[1730884788123,4.61284,2617.4,2616.9,3.82128]
[1730884788321,4.61284,2617.4,2616.8,8.81019]
[1730884788618,4.61279,2617.4,2617.0,3.82116]
[1730884788826,0.7922,2617.4,2617.1,3.82095]
[1730884789466,0.7922,2617.4,2617.0,3.82115]
[1730884789771,1.67827312,2617.4,2617.1,3.82101]
[1730884790254,1.67827312,2617.4,2617.0,3.82115]
[1730884790419,5.49885312,2617.4,2617.0,3.82115]
[1730884790838,5.49885312,2617.4,2617.0,3.82109]
[1730884791338,5.49885312,2617.4,2616.9,3.82131]
[1730884791521,0.54988531,2617.3,2617.0,3.82114]
[1730884791861,0.54988531,2617.3,2616.9,3.82124]
[1730884792159,0.54988531,2617.3,2617.0,3.82115]
[1730884792544,0.54988531,2617.3,2616.9,3.82131]
[1730884793060,4.37063531,2617.3,2616.8,4.20276]
[1730884793237,0.51628353,2617.2,2616.8,4.20276]
[1730884793435,4.33719353,2617.2,2616.8,4.20276]
[1730884793635,4.33719353,2617.2,2616.9,3.82128]
[1730884793636,0.51628353,2617.2,2616.9,3.82128]
[1730884794162,0.51628353,2617.2,2616.7,0.3814]
[1730884794456,0.51628353,2617.2,2616.8,3.82132]
[1730884795146,0.51628353,2617.2,2616.9,3.82128]
[1730884795541,4.6128,2617.4,2617.0,3.82112]
[1730884795737,0.7922,2617.4,2617.0,3.82112]
[1730884796936,0.7697,2617.7,2617.3,3.8207]
[1730884797138,4.58984,2617.7,2617.3,3.8207]
[1730884797398,1.228684,2617.7,2617.1,3.82092]
[1730884797529,1.228684,2617.7,2617.3,3.82072]
[1730884797929,3.82041,2617.6,2617.1,3.82095]
[1730884798864,3.8208,2617.3,2616.8,3.82139]
[1730884799075,3.8208,2617.3,2616.5,0.1267814]
[1730884799076,3.82109,2617.1,2616.6,3.82168]
[1730884799573,3.82109,2617.1,2616.6,7.64336]
[1730884799722,3.82109,2617.1,2616.6,3.82168]
[1730884799924,0.7904,2617.2,2616.7,3.82153]
[1730884800124,0.461123,2617.1,2616.7,3.82153]
[1730884800561,4.282153,2617.1,2616.7,3.82153]
[1730884801033,4.282153,2617.1,2616.5,3.9485614]
[1730884801238,4.282153,2617.1,2616.6,3.82173]
[1730884801479,4.282153,2617.1,2616.5,3.9485614]
[1730884801685,4.3285353,2617.0,2616.5,3.9485614]
[1730884801837,4.3285353,2617.0,2616.5,7.7703814]
[1730884802357,3.82132,2616.9,2616.5,3.9485614]
[1730884802561,0.8048,2616.9,2616.5,0.1267814]
[1730884802752,3.82167,2616.7,2616.5,0.1267814]
[1730884802951,5.008717,2616.6,2616.5,0.1267814]
[1730884804091,1.186967,2616.6,2616.5,0.1267814]
[1730884804291,0.8048,2616.6,2616.5,0.1267814]
[1730884804809,4.62655,2616.6,2616.5,0.1267814]
[1730884807146,3.82318,2615.7,2615.1,3.82393]
[1730884807346,0.7581,2616.3,2615.0,0.326589]
[1730884807347,3.8235,2615.4,2615.0,0.326589]
[1730884808247,3.82348,2615.5,2615.0,0.326589]
[1730884808449,3.82322,2615.6,2615.0,4.150539]
[1730884808759,4.58108,2615.8,2615.3,3.82364]
[1730884809176,8.40413,2615.8,2615.1,8.40875]
[1730884809389,3.82329,2615.6,2615.0,0.326589]
[1730884809744,3.82339,2615.5,2615.0,0.326589]
[1730884809947,3.82367,2615.3,2615.0,0.326589]
[1730884810155,0.382367,2615.2,2615.0,0.326589]
[1730884810398,3.82426,2614.9,2614.3,4.60188]
[1730884810579,3.82426,2614.9,2614.3,0.7769]
[1730884810754,3.82426,2614.9,2613.9,0.1259814]
[1730884810755,0.7546,2614.8,2614.4,3.82488]
[1730884811093,3.82399,2615.1,2614.4,0.7646]
[1730884811277,0.8293,2615.5,2614.5,3.82472]
[1730884811586,3.82374,2615.3,2614.8,3.82437]
[1730884811790,4.671389,2615.3,2614.8,3.82437]
[1730884811959,0.59862592,2616.1,2615.6,3.82309]
[1730884812147,0.59862592,2616.1,2615.4,3.82343]
[1730884812350,4.61593,2616.2,2615.4,3.82343]
[1730884812677,3.82264,2616.0,2615.4,3.82343]
[1730884812847,4.61594,2616.2,2615.2,0.7617]
[1730884813056,3.82087,2617.3,2616.3,0.7518]
[1730884813299,3.82113,2617.1,2616.4,3.82195]
[1730884813479,0.382113,2617.0,2616.4,3.82195]
[1730884813796,0.59841719,2617.3,2616.4,0.07643518]
[1730884813999,3.82131,2616.9,2616.0,3.82252]
[1730884814163,4.63798,2617.1,2616.2,3.82222]
[1730884814498,3.82146,2616.8,2616.2,3.82222]
[1730884814694,3.8217,2616.7,2616.0,3.82258]
[1730884814995,3.82146,2616.8,2616.1,3.82247]
[1730884815374,7.64248,2617.0,2615.9,0.7649]
[1730884815560,0.8169,2617.1,2616.4,3.82193]
[1730884815766,0.8169,2617.1,2616.0,0.55]
[1730884815767,3.82119,2617.0,2616.3,3.82209]
[1730884815963,7.6425,2617.0,2616.3,3.82207]
[1730884816200,0.7579,2616.9,2616.1,3.82242]
[1730884816397,3.82199,2616.5,2615.9,4.58758]
[1730884816609,0.7579,2616.9,2615.9,0.7649]
[1730884816811,3.8215,2616.8,2616.1,3.82238]
[1730884817014,0.45794,2616.7,2615.9,0.7649]
[1730884817217,0.7579,2616.9,2616.6,3.82166]
[1730884817432,3.82093,2617.2,2616.6,3.82166]
[1730884817605,4.57883,2617.2,2616.6,3.82166]
[1730884817932,4.278913,2617.1,2616.6,3.82166]
[1730884818824,3.8212,2617.0,2616.4,3.82195]
[1730884819133,3.8212,2617.0,2616.5,3.82181]
[1730884819337,3.8212,2617.0,2616.3,3.8221]
[1730884819637,3.8212,2617.0,2616.1,3.82242]
[1730884819638,3.82204,2616.4,2615.8,3.82287]
[1730884819814,3.82204,2616.4,2615.8,3.82284]
[1730884820533,7.64373,2616.6,2616.0,3.82262]
[1730884820834,3.82209,2616.4,2615.8,3.82281]
[1730884821128,0.382209,2616.3,2615.6,0.8255]
[1730884821334,0.7735,2616.7,2616.3,3.82208]
[1730884821823,4.59518,2616.7,2616.2,3.82233]